Cogmind - Beta 17 @@@ ROGUE MODE // 2026.07.17 @ 20:46:11 Player: MadBadger Result: Destroyed by NS-JXE(R) with Subdweller Shrapnel Launcher Performance ------------- Evolutions (0) 0 Regions Visited (2) 400 Robots Destroyed (4) 20 Value Destroyed (130) 130 Prototype IDs (0) 0 Alien Tech Used (0) 0 Bonus (0) 0 TOTAL SCORE: 550 Bonus ------- None Cogmind --------- Core Integrity 0/250 Matter 289/300 Energy 100/100 System Corruption 0% Temperature Cool (0) Movement Walking (190) Ox1 Location -10/Subcaves Parts ------- > --- POWER (1) -------- (None) > --- PROPULSION (2) --- Aluminum Leg > --- UTILITY (2) ------ Small Storage Unit Makeshift Light Armor Plating > --- WEAPON (2) ------- Assault Rifle Light Assault Rifle > --- INVENTORY (8) ---- Light Ion Engine Aluminum Leg Peak State ------------ > --- POWER ------------ Ion Engine > --- PROPULSION ------- Aluminum Leg Aluminum Leg > --- UTILITY ---------- Small Storage Unit Makeshift Light Armor Plating > --- WEAPON ----------- Medium Laser Assault Rifle > --- INVENTORY -------- Light Ion Engine Light Assault Rifle [Rating: 10] Favorites ----------- Power Ion Engine Engine Ion Engine Propulsion Aluminum Leg Leg Aluminum Leg Utility Small Storage Unit Storage Small Storage Unit Protection Makeshift Light Armor Plating Weapon Assault Rifle Energy Gun Medium Laser Ballistic Gun Assault Rifle Build | -11 -10 -10 ------- Run | Yrd Mat Sub Slots Evolved . | . . . Power . | . . . Propulsion . | . . . Utility . | . . . Weapon . | . . . Parts Attached 9 | 7 . 2 Power 2 | 2 . . Engine 2 | 2 . . Core . | . . . Reactor . | . . . Propulsion 2 | 2 . . Treads . | . . . Leg 2 | 2 . . Wheel . | . . . Hover . | . . . Flight . | . . . Utility 2 | 1 . 1 Device . | . . . Storage 1 | 1 . . Processor . | . . . Hackware . | . . . Protection 1 | . . 1 Artifact . | . . . Weapon 3 | 2 . 1 Energy Gun 1 | 1 . . Energy Cannon . | . . . Ballistic Gun 2 | 1 . 1 Ballistic Cannon . | . . . Launcher . | . . . Special Weapon . | . . . Impact Weapon . | . . . Slashing Weapon . | . . . Piercing Weapon . | . . . Special Melee Weapon . | . . . Unidentified Prototypes . | . . . Parts Lost 3 | . . 3 Power 1 | . . 1 Propulsion 1 | . . 1 Utility . | . . . Weapon 1 | . . 1 Highest Loss Streak 1 | . . 1 To Critical Strikes . | . . . Average Backups 2 | . 2 2 Power . | . 1 1 Propulsion . | . . . Utility . | . . . Weapon . | . 1 . Tool/Special . | . . . Unused Backups 1 | . . 1 Power . | . . . Propulsion 1 | . . 1 Utility . | . . . Weapon . | . . . Tool/Special . | . . . Average Slot Usage (%) 89 | . 85 90 Engine 14 | . 14 14 Leg 24 | . 28 24 Storage 14 | . 14 14 Protection 11 | . . 13 Energy Gun 7 | . 14 6 Ballistic Gun 16 | . 14 17 Peak Build Rating 10 | 6 6 10 Average Rating 8 | 4 6 9 On Entrance 4 | . 6 6 Avg Prop Armor Cover (%) . | . . . Naked Turns . | . . . Heaviest Build 18 | 14 14 18 Greatest Support 20 | 20 20 20 Greatest Overweight (x) 2 | 2 . 1 Average Overweight (x) . | . . . Largest Inventory Capacity 8 | 8 8 8 Average Capacity 7 | 7 8 8 Most Carried 3 | 2 2 3 Average Carried 2 | . 2 2 Final Capacity 8 | 8 8 8 Final Carried 2 | 2 2 2 Class Distribution -------------------- 100% | Mutant Dominant Class ---------------- Mutant | -10/Materials Mutant | -10/Subcaves Resources | -11 -10 -10 ----------- Run | Yrd Mat Sub Matter Collected 347 | 254 . 93 Remotely . | . . . Salvage Created 134 | . . 134 Parts 9 | . . 9 Haulers Intercepted . | . . . Recyclers Shooed . | . . . Parts Field Recycled . | . . . Retrieved Matter . | . . . Parts Self-Destructed 9 | . . 9 Prevented . | . . . Parts Restored . | . . . Kills | -11 -10 -10 ------- Run | Yrd Mat Sub Combat Hostiles Destroyed 4 | . . 4 Guns 4 | . . 4 Classes Destroyed 2 | . . 2 Swarmer 1 | . . 1 Subdweller 3 | . . 3 Best Kill Streak 1 | . . 1 Combat Bots Only 1 | . . 1 Max Kills in Single Turn 1 | . . 1 Gunslinging . | . . . Exploded . | . . . Melee . | . . . Uniques/NPCs Destroyed . | . . . Combat | -11 -10 -10 -------- Run | Yrd Mat Sub Hostile Shots Fired 82 | . . 82 Missed 30 | . . 30 Hits 52 | . . 52 Projectile 52 | . . 52 AOE 3 | . . 3 Damage Taken 783 | . . 783 Core 271 | . . 271 Absorbed by Shields . | . . . Core Remaining (%) 100 | 100 . . Volleys Fired 25 | . . 25 Largest 2 | . . 2 Hottest 70 | . . 70 Shots Fired 32 | . . 32 Gun 32 | . . 32 Cannon . | . . . Launcher . | . . . Special . | . . . Kinetic 28 | . . 28 Thermal 4 | . . 4 Explosive . | . . . Electromagnetic . | . . . Robot Hit Streak 7 | . . 7 Robot Miss Streak 5 | . . 5 Penetration Max . | . . . Secondary Targets . | . . . Shots Hit Robots 22 | . . 22 Core Hits 7 | . . 7 Critical Kills . | . . . Critical Parts Destroyed . | . . . Critical Strikes . | . . . Melee Attacks . | . . . Impact . | . . . Slashing . | . . . Piercing . | . . . Sneak Attacks . | . . . Combat Hostiles . | . . . Follow-up Attacks . | . . . Damage Inflicted 209 | . . 209 Guns 209 | . . 209 Cannons . | . . . Explosions . | . . . Melee . | . . . Ramming . | . . . Kinetic 172 | . . 172 Thermal 37 | . . 37 Explosive . | . . . Electromagnetic . | . . . Impact . | . . . Slashing . | . . . Piercing . | . . . Highest Corruption . | . . . Average Corruption . | . . . Corruption Purged . | . . . Corruption Blocked . | . . . Overload Shots . | . . . Overflow Damage . | . . . Projectiles . | . . . Explosions . | . . . Melee . | . . . Knockbacks . | . . . Impact . | . . . Kinetic . | . . . Secondary . | . . . Self-Inflicted Damage . | . . . Shots . | . . . Rammed . | . . . Targets Rammed . | . . . Kicked . | . . . Crushed . | . . . Highest Temperature . | . . . Average Temperature . | . . . Received Heat Transfer 165 | . . 165 Siege Activations . | . . . Martial Activations . | . . . Shielding Activations . | . . . Robots Disrupted . | . . . Combat Hostiles . | . . . Robots Corrupted . | . . . Combat Hostiles . | . . . Parts Fried . | . . . Impact Corruptions . | . . . Robots Melted . | . . . Combat Hostiles . | . . . Parts Melted . | . . . Heat Transferred 111 | . . 111 Parts Sabotaged . | . . . Parts Stolen . | . . . Parts Stripped . | . . . Power Chain Reactions . | . . . Alert | -11 -10 -10 ------- Run | Yrd Mat Sub Maximum Alert Level . | . . . Low Security (%) 100 | 100 100 . Level 1 . | . . . Level 2 . | . . . Level 3 . | . . . Level 4 . | . . . Level 5 . | . . . High Security . | . . . Max Security . | . . . Peak Influence 30 | . 30 . Initial . | . . . Average 3 | . 7 . Influence Increases 95 | . 30 65 Destroy 0b10 Robot/C 20 | . . 20 Partial Spotted 30 | . 30 . Lose Combat Pursuer 45 | . . 45 Influence Decreases 95 | . 10 85 Entered New Map 10 | . . 10 Time Decay 68 | . 10 58 Lost Part 17 | . . 17 Squads Dispatched . | . . . Investigation . | . . . Extermination . | . . . Reinforcement . | . . . Assault . | . . . Garrison . | . . . Intercept . | . . . Searches Triggered . | . . . Construction Impeded . | . . . Haulers Reinforced . | . . . Active Scanning Responses . | . . . Cargo Convoy Interrupts . | . . . Stealth | -11 -10 -10 --------- Run | Yrd Mat Sub Distress Signals . | . . . Communications Jammed . | . . . Distress Signals . | . . . Times Spotted 16 | . 1 15 Peak Tracking Total 10 | . 3 10 Tactical Retreats 3 | . . 3 Traps | -11 -10 -10 ------- Run | Yrd Mat Sub Traps Triggered . | . . . Indirectly . | . . . Trap Hack Attempts . | . . . Triggered . | . . . Disarmed . | . . . Reprogrammed . | . . . Reused . | . . . Traps Extracted . | . . . Installed . | . . . Triggered . | . . . Machines | -11 -10 -10 ---------- Run | Yrd Mat Sub Machines Disabled . | . . . Max in Single Turn . | . . . Machines Repaired . | . . . Machines Dismantled . | . . . Machines Sabotaged . | . . . Overloaded Fab Kills . | . . . Hacking | -11 -10 -10 --------- Run | Yrd Mat Sub Machines Accessed . | . . . Terminals . | . . . Fabricators . | . . . Repair Stations . | . . . Recycling Units . | . . . Scanalyzers . | . . . Garrison Access . | . . . Total Hacks . | . . . Successful . | . . . Failed . | . . . Catastrophic . | . . . Database Lockouts . | . . . Manual . | . . . Terminals . | . . . Fabricators . | . . . Repair Stations . | . . . Recycling Units . | . . . Scanalyzers . | . . . Garrison Access . | . . . Terminal Hacks . | . . . Fabricator Hacks . | . . . Repair Station Hacks . | . . . Recycling Unit Hacks . | . . . Scanalyzer . | . . . Garrison Access Hacks . | . . . Unauthorized Hacks . | . . . Terminals . | . . . Fabricators . | . . . Repair Stations . | . . . Recycling Units . | . . . Scanalyzers . | . . . Garrison Access . | . . . Data Cores Recovered . | . . . Used . | . . . Hacking Detections . | . . . Full Trace Events . | . . . Feedback Events . | . . . Feedback Blocked . | . . . Robot Schematics Acquired . | . . . Robots Built . | . . . Authchips . | . . . Time . | . . . Total Robot Build Rating . | . . . Part Schematics Acquired . | . . . Parts Built . | . . . Authchips . | . . . Time . | . . . Total Part Build Rating . | . . . Part Studies Acquired . | . . . Parts Repaired . | . . . Time . | . . . Parts Recycled . | . . . Recycled Matter . | . . . Retrieved Matter . | . . . Retrieved Components . | . . . Parts Scanalyzed . | . . . Part Schematics Acquired . | . . . Parts Damaged . | . . . Bothacking | -11 -10 -10 ------------ Run | Yrd Mat Sub Used RIF Installer . | . . . Robots Hacked . | . . . Non-combat . | . . . Combat . | . . . Robot Hacks Applied . | . . . Relay Couplers Released . | . . . Fabnet Peak Effective % . | . . . Robots Rewired . | . . . Allies Hacked . | . . . Hacks Repelled . | . . . Allies | -11 -10 -10 -------- Run | Yrd Mat Sub Total Allies . | . . . Largest Group . | . . . Highest-Rated Group . | . . . Highest-Rated Ally . | . . . Total Orders . | . . . Ally Attacks . | . . . Total Damage . | . . . Kills . | . . . Allies Corrupted . | . . . Allies Melted . | . . . Intel | -11 -10 -10 ------- Run | Yrd Mat Sub Active Infowar (turns) . | . . . Robot Analysis Total . | . . . Derelict Logs Recovered . | . . . Drone Launches . | . . . Drone Recoveries . | . . . Exploration | -11 -10 -10 ------------- Run | Yrd Mat Sub Turns Passed 790 | 64 68 658 Spaces Moved 528 | 45 57 426 Core 10 | 10 . . Treads . | . . . Legs 518 | 35 57 426 Wheels . | . . . Hover . | . . . Flight . | . . . Fastest Speed 50 | 50 120 120 Average Speed 130 | 113 120 133 Slowest Speed 190 | 150 120 190 Overloaded Moves . | . . . Propulsion Burnouts . | . . . Robots Hopped . | . . . Potential Cave-ins . | . . . Cave-ins Triggered . | . . . Exploration Rate (%) 18 | 4 15 35 Regions Visited 2 Branch Regions 1 Pre-discovered Areas . | . . . Known Exits Taken . | . . . Unknown Exits Taken 2 | 1 1 . Scrap Searched . | . . . Spaces Dug . | . . . Terrain Destroyed . | . . . Melee . | . . . Projectile . | . . . AOE . | . . . Terrain Rammed . | . . . Walls Destroyed . | . . . Machines Disabled . | . . . Actions | -11 -10 -10 --------- Run | Yrd Mat Sub Total 593 | 54 56 483 Wait 30 | 1 . 29 Move 526 | 44 56 426 Hop . | . . . Pick Up 3 | 2 . 1 Fast Attach 7 | 6 . 1 Attach 1 | . . 1 Detach . | . . . Swap 1 | 1 . . Drop . | . . . Fire 25 | . . 25 Melee . | . . . Ram . | . . . Kick . | . . . Crush . | . . . Escape Stasis . | . . . Rewire . | . . . Trap . | . . . Miscellaneous . | . . . Route ------- -11/Scrapyard -10/Materials -10/Subcaves History --------- Turn | Location | Event 20 | -11/Scrapyard | Discovered new exit (range 14) 65 | -11/Scrapyard | Entered Materials 66 | -10/Materials | Met a group of wandering Federalists 94 | -10/Materials | Discovered new exit (range 15) 133 | -10/Materials | Entered Subcaves 134 | -10/Subcaves | Continued accompanying wandering Federalists (2) 145 | -10/Subcaves | Shifting Twisted Machinery released Mak. Light Armor Plating 163 | -10/Subcaves | Shifting Twisted Machinery released Sub. Monowheel 301 | -10/Subcaves | Build established: Mutant 412 | -10/Subcaves | Core integrity fell below 50% 424 | -10/Subcaves | Shifting Twisted Machinery released Sub. Beam Cannon 426 | -10/Subcaves | Shifting Twisted Machinery released Battle Cannon 618 | -10/Subcaves | Core integrity fell below 20% 791 | -10/Subcaves | Destroyed by NS-JXE(R) with Subdweller Shrapnel Launcher Last Messages --------------- 00281_ Subatomizers dissect the Aluminum Leg. 00282_ Acquired 29 matter. 00296_ Subatomizers dissect the Aluminum Leg. 00299_ Acquired Aluminum Leg. 00306_ Subatomizers dissect the Salvaging Laser. 00311_ YS-DJY(R) destroyed. 00314_ Acquired 7 matter. 00316_ Acquired 2 matter. 00418_ AG-EXY(R) suffers critical hit (Meltdown). 00421_ Med. Laser destroyed. Sub. Beam Cannon falls loose from the Twisted Machinery. Battle Cannon falls loose from the Twisted Machinery. 00431_ Flight Unit fries itself beyond repair. 00461_ Destroyed Flight Unit. 00463_ S-10 Pest destroyed. 00619_ Aluminum Leg destroyed. 00641_ 8K-0GV(R) destroyed. 00650_ Acquired 40 matter. 00756_ Acquired 15 matter. 00791_ Ion Engine destroyed. Map ----- +----------------------------------------------------+ | ?????# ##??????????????????????????????????? | | ?????# # #???????????????????????????????????? | | ?????# ## #??????????????????????????????????? | | ????? ## #??????????????????????????????????? | | ???? ### ?????????????????????????????????? | | ??? ##?## # #????????????????????????????????? | | ??? ?????#####????????????????????????????????? | | ?? #??????????????????????????????????????????? | | ? #???????????????????????????????????????????? | | ?## ????????????????????????????????????????????? | | ??# ????????????????????????????????????????????? | | ??# ?????????????????????????????????????????????? | | ?????????????????????????????????????????????????? | | ????????????????????##???????????????????????????? | | ???????????????????##%???????????????????????????? | | ???????????????????# ##?????????????????????????? | | ??????????????##??## ##????????????????????????? | | ????????????? # ### #????????????????????????? | | ?????????????? #????????????????????????? | | ??????????????? #????????????????????????? | | ????????????????? ###??????????????????????? | | #???????####??????# ###????????????????????? | | # #????# ##?##### ##???????????????????? | | ????# ### #???????????????????? | | ???# ## ????????? | | #??## @ R ????????? | | #??# #### ????????? | | #### ##????????? ????????? | | # #????????????????????????? | | #????????????????????????? | | # ## #????????????????????????? | | #### ## ##???????????????????????? | | ???### ## ##??????????????????????? | | ?????# ## ## ##?????????????????????? | | ?????# # ## #?????????????????????? | | ?????## ## ### ! #?????????????????????? | | ?????## ## #?# ### #?????????????????????? | | ?????# ## #??## ##?## %#?????????????????????? | | ?????# ####????###??## #?????????????????????? | | ?????# #??????????## #?????????????????????? | | ###### #?????????## #?????????????????????? | | ## ##?????????# #?????????????????????? | | #??????????## #?????????????????????? | | ## #???????????## ##?????????????????????? | | ####????????????## ##??????????????????????? | | ##????????????????####???????????????????????? | | # #????????????????????????????????????????????? | | #####????????????????????????????????????????????? | | ?????????????????????????????????????????????????? | | ?????????????????????????????????????????????????? | +----------------------------------------------------+ Best States ------------- Heat Dissipation 25 Energy Generation 10 Energy Capacity 250 Matter Stores 300 Matter Capacity 300 Sight Range 16 Terrain Scan Density 10 Armor Coverage 100 Evasion (%) 55 Item Schematics ----------------- None Robot Schematics ------------------ None Fabricated ------------ Nothing Repaired ---------- Nothing Studied --------- None Alien Tech Used ----------------- None Achievements -------------- Strength In Numbers Challenges ------------ None Game ------ Seed CloakGammaCarapace Manual? 0 Play Time 00:07:05 Cumulative 30.2 hours Start 2026.07.17 @ 20:38:19 End 2026.07.17 @ 20:46:11 Sessions 1 Manual Loads 0 Difficulty Rogue Special Mode None Game No. 66 Rogue 66 Adventurer 0 Explorer 0 Win Type - Total 0 Types 0/0/0/0/0/0/0/0/0/0 Lore% 12 Gallery% 15 Achievement% 11 Wizard Run 0 Options --------- Layout 0 ASCII 0 Keyboard 0 Movement Numpad Keybinds 0 Fullscreen 2 Font 24/Smallcaps Map View 76x50 Zoom Use 0% Tactical HUD 1 Map Filters NONE Filters NONE Steam 1 RUN: 5274c7d1-9c96-4399-a696-29710b300355